[Event "SS Manhem Chess Week 2022: Goteborg Open"]
[Site "Schackcentrum, Vegagatan 20, Gothenburg, Sweden"]
[Date "2022.08.14"]
[Round "8.12"]
[White "Imani Lasaki, Hamed"]
[Black "Eldh, Hjalmar"]
[Result "0-1"]
[TimeControl "15 minutes + 5 seconds per move from move one (Round 1 - 4) / 90 minutes + 30 seconds per move from move one (Round 5 - 8)"]
[WhiteFideId "1766970"]
[BlackFideId "1767968"]
[WhiteElo "1577"]
[BlackElo "1711"]

1. d4 {[%clk 01:29:53]} {[%emt 00:00:55]} Nf6 {[%clk 01:30:49]} {[%emt
00:00:06]} 2. c4 {[%clk 01:29:41]} {[%emt 00:00:48]} g6 {[%clk 01:31:08]}
{[%emt 00:00:10]} 3. Nc3 {[%clk 01:29:42]} {[%emt 00:00:30]} d5 {[%clk
01:31:30]} {[%emt 00:00:08]} 4. Bg5 {[%clk 01:29:39]} {[%emt 00:00:34]} Bg7
{[%clk 01:31:46]} {[%emt 00:00:13]} 5. Bxf6 {[%clk 01:27:13]} {[%emt 00:02:56]}
Bxf6 {[%clk 01:32:09]} {[%emt 00:00:07]} 6. Nxd5 {[%clk 01:27:23]} {[%emt
00:00:20]} Bg7 {[%clk 01:32:25]} {[%emt 00:00:13]} 7. e3 {[%clk 01:26:27]}
{[%emt 00:01:27]} c5 {[%clk 01:32:47]} {[%emt 00:00:08]} 8. Nf3 {[%clk
01:24:44]} {[%emt 00:02:13]} Nc6 {[%clk 01:33:01]} {[%emt 00:00:15]} 9. Qa4
{[%clk 01:22:46]} {[%emt 00:02:28]} O-O {[%clk 01:32:39]} {[%emt 00:00:52]} 10.
dxc5 {[%clk 01:16:14]} {[%emt 00:07:04]} Bxb2 {[%clk 01:32:37]} {[%emt
00:00:31]} 11. Rd1 {[%clk 01:16:16]} {[%emt 00:00:27]} Bg4 {[%clk 01:31:56]}
{[%emt 00:01:09]} 12. Nf6+ {[%clk 01:16:26]} {[%emt 00:00:22]} Bxf6 {[%clk
01:32:10]} {[%emt 00:00:16]} 13. Rxd8 {[%clk 01:16:39]} {[%emt 00:00:18]} Rfxd8
{[%clk 01:32:34]} {[%emt 00:00:06]} 14. Qb3 {[%clk 01:11:49]} {[%emt 00:05:20]}
a5 {[%clk 01:31:27]} {[%emt 00:01:37]} 15. Be2 {[%clk 01:11:36]} {[%emt
00:00:43]} Nb4 {[%clk 01:30:52]} {[%emt 00:01:05]} 16. O-O {[%clk 01:11:08]}
{[%emt 00:00:58]} Bf5 {[%clk 01:30:43]} {[%emt 00:00:37]} 17. Rd1 {[%clk
01:03:42]} {[%emt 00:07:58]} Bc2 {[%clk 01:31:00]} {[%emt 00:00:13]} 18. Rxd8+
{[%clk 01:04:02]} {[%emt 00:00:10]} Rxd8 {[%clk 01:31:24]} {[%emt 00:00:06]} 19.
Qa3 {[%clk 01:04:15]} {[%emt 00:00:18]} Bd1 {[%clk 01:30:43]} {[%emt 00:01:10]}
20. Qxa5 {[%clk 01:01:40]} {[%emt 00:03:04]} Nc6 {[%clk 01:30:56]} {[%emt
00:00:17]} 21. Qe1 {[%clk 01:01:41]} {[%emt 00:00:30]} Ba4 {[%clk 01:30:23]}
{[%emt 00:01:01]} 22. Qb1 {[%clk 00:57:21]} {[%emt 00:04:52]} Rd7 {[%clk
01:29:43]} {[%emt 00:01:10]} 23. g3 {[%clk 00:57:05]} {[%emt 00:00:45]} e5
{[%clk 01:29:49]} {[%emt 00:00:23]} 24. Ne1 {[%clk 00:55:36]} {[%emt 00:01:59]}
Nd8 {[%clk 01:28:03]} {[%emt 00:02:16]} 25. Nd3 {[%clk 00:54:02]} {[%emt
00:02:05]} e4 {[%clk 01:27:19]} {[%emt 00:01:13]} 26. Nb2 {[%clk 00:51:56]}
{[%emt 00:02:37]} Bc6 {[%clk 01:27:27]} {[%emt 00:00:22]} 27. Qc2 {[%clk
00:50:14]} {[%emt 00:02:12]} h5 {[%clk 01:26:46]} {[%emt 00:01:10]} 28. Na4
{[%clk 00:49:09]} {[%emt 00:01:36]} Ne6 {[%clk 01:26:46]} {[%emt 00:00:29]} 29.
Nb6 {[%clk 00:47:32]} {[%emt 00:02:07]} Rd8 {[%clk 01:24:13]} {[%emt 00:03:03]}
30. Nd5 {[%clk 00:46:35]} {[%emt 00:01:27]} Bxd5 {[%clk 01:24:20]} {[%emt
00:00:23]} 31. cxd5 {[%clk 00:47:02]} {[%emt 00:00:03]} Rxd5 {[%clk 01:24:24]}
{[%emt 00:00:26]} 32. Qxe4 {[%clk 00:47:01]} {[%emt 00:00:31]} Rxc5 {[%clk
01:24:41]} {[%emt 00:00:12]} 33. Qxb7 {[%clk 00:46:54]} {[%emt 00:00:37]} h4
{[%clk 01:24:17]} {[%emt 00:00:54]} 34. Kg2 {[%clk 00:45:34]} {[%emt 00:01:50]}
Ng5 {[%clk 01:19:21]} {[%emt 00:05:26]} 35. gxh4 {[%clk 00:42:03]} {[%emt
00:04:02]} Ne6 {[%clk 01:19:39]} {[%emt 00:00:11]} 36. Bg4 {[%clk 00:37:31]}
{[%emt 00:05:02]} Nd8 {[%clk 01:18:57]} {[%emt 00:01:14]} 37. Qa7 {[%clk
00:36:11]} {[%emt 00:01:49]} Rc2 {[%clk 01:17:36]} {[%emt 00:01:50]} 38. Kg3
{[%clk 00:35:07]} {[%emt 00:01:35]} Nc6 {[%clk 01:17:40]} {[%emt 00:00:26]} 39.
Qa8+ {[%clk 00:33:45]} {[%emt 00:01:51]} Kg7 {[%clk 01:18:03]} {[%emt
00:00:08]} 40. h5 {[%clk 00:32:12]} {[%emt 00:02:03]} Ne5 {[%clk 01:18:01]}
{[%emt 00:00:33]} 41. Qa4 {[%clk 00:30:31]} {[%emt 00:02:12]} Rc4 {[%clk
01:18:18]} {[%emt 00:00:13]} 42. Qd1 {[%clk 00:27:29]} {[%emt 00:03:31]} Rxg4+
{[%clk 01:18:14]} {[%emt 00:00:33]} 43. Qxg4 {[%clk 00:26:13]} {[%emt
00:01:46]} Nxg4 {[%clk 01:18:39]} {[%emt 00:00:05]} 44. Kxg4 {[%clk 00:26:35]}
{[%emt 00:00:08]} g5 {[%clk 01:18:52]} {[%emt 00:00:17]} 45. a4 {[%clk
00:26:39]} {[%emt 00:00:27]} Bd8 {[%clk 01:19:16]} {[%emt 00:00:06]} 46. f4
{[%clk 00:22:09]} {[%emt 00:05:00]} gxf4 {[%clk 01:19:26]} {[%emt 00:00:19]} 47.
exf4 {[%clk 00:19:36]} {[%emt 00:03:04]} Kf6 {[%clk 01:13:46]} {[%emt
00:06:09]} 48. f5 {[%clk 00:17:24]} {[%emt 00:02:43]} Kg7 {[%clk 01:13:34]}
{[%emt 00:00:41]} 49. h3 {[%clk 00:16:52]} {[%emt 00:01:02]} Kh6 {[%clk
01:10:53]} {[%emt 00:03:11]} 50. h4 {[%clk 00:14:20]} {[%emt 00:03:03]} f6
{[%clk 01:11:01]} {[%emt 00:00:23]} 51. Kf4 {[%clk 00:10:31]} {[%emt 00:04:19]}
Kxh5 {[%clk 01:11:17]} {[%emt 00:00:13]} 52. Ke4 {[%clk 00:10:45]} {[%emt
00:00:16]} Kxh4 {[%clk 01:11:38]} {[%emt 00:00:09]} 53. Kd5 {[%clk 00:11:06]}
{[%emt 00:00:09]} Kg5 {[%clk 01:11:57]} {[%emt 00:00:10]} 54. Ke6 {[%clk
00:11:16]} {[%emt 00:00:21]} Ba5 {[%clk 01:12:17]} {[%emt 00:00:10]} 55. Kd5
{[%clk 00:10:45]} {[%emt 00:01:01]} Kxf5 {[%clk 01:12:39]} {[%emt 00:00:08]} 56.
Kc6 {[%clk 00:11:08]} {[%emt 00:00:07]} Ke4 {[%clk 01:12:57]} {[%emt 00:00:12]}
57. Kb5 {[%clk 00:11:37]} {[%emt 00:00:02]} Bd2 {[%clk 01:13:15]} {[%emt
00:00:11]} 58. a5 {[%clk 00:11:31]} {[%emt 00:00:36]} Bxa5 {[%clk 01:13:38]}
{[%emt 00:00:07]} 59. Kxa5 {[%clk 00:11:58]} {[%emt 00:00:03]} f5 {[%clk
01:14:01]} {[%emt 00:00:07]} 60. Kb4 {[%clk 00:12:26]} {[%emt 00:00:02]} f4
{[%clk 01:14:14]} {[%emt 00:00:19]} 61. Kc3 {[%clk 00:12:55]} Ke3 {[%clk
01:14:19]} {[%emt 00:00:24]} 0-1

[Event "SS Manhem Chess Week 2022: Goteborg Open"]
[Site "Schackcentrum, Vegagatan 20, Gothenburg, Sweden"]
[Date "2022.08.14"]
[Round "8.13"]
[White "Karlsson, Stefan"]
[Black "Shchetinin, Oleg"]
[Result "1-0"]
[TimeControl "15 minutes + 5 seconds per move from move one (Round 1 - 4) / 90 minutes + 30 seconds per move from move one (Round 5 - 8)"]
[WhiteFideId "1771183"]
[BlackFideId "1740210"]
[WhiteElo "1560"]
[BlackElo "1643"]

1. e4 {[%clk 01:30:58]} {[%emt 00:00:01]} Nf6 {[%clk 01:30:54]} {[%emt
00:00:07]} 2. e5 {[%clk 01:31:24]} {[%emt 00:00:04]} Nd5 {[%clk 01:31:19]}
{[%emt 00:00:04]} 3. c4 {[%clk 01:31:47]} {[%emt 00:00:06]} Nb6 {[%clk
01:31:44]} {[%emt 00:00:05]} 4. d4 {[%clk 01:32:13]} {[%emt 00:00:04]} d6
{[%clk 01:32:08]} {[%emt 00:00:06]} 5. f4 {[%clk 01:32:37]} {[%emt 00:00:06]}
dxe5 {[%clk 01:32:24]} {[%emt 00:00:14]} 6. fxe5 {[%clk 01:32:11]} {[%emt
00:00:56]} Nc6 {[%clk 01:31:23]} {[%emt 00:01:32]} 7. Be3 {[%clk 01:31:43]}
{[%emt 00:00:58]} Bf5 {[%clk 01:30:47]} {[%emt 00:01:06]} 8. Nc3 {[%clk
01:31:18]} {[%emt 00:00:54]} e6 {[%clk 01:30:36]} {[%emt 00:00:41]} 9. g4
{[%clk 01:23:37]} {[%emt 00:08:11]} Bg6 {[%clk 01:29:39]} {[%emt 00:01:27]} 10.
Nf3 {[%clk 01:23:06]} {[%emt 00:01:01]} Bb4 {[%clk 01:19:52]} {[%emt 00:10:18]}
11. Bd3 {[%clk 01:18:01]} {[%emt 00:05:34]} Bxd3 {[%clk 01:17:52]} {[%emt
00:02:31]} 12. Qxd3 {[%clk 01:18:03]} {[%emt 00:00:28]} Qe7 {[%clk 01:12:20]}
{[%emt 00:06:02]} 13. O-O-O {[%clk 01:13:20]} {[%emt 00:05:12]} O-O-O {[%clk
01:12:34]} {[%emt 00:00:17]} 14. Ne4 {[%clk 01:12:12]} {[%emt 00:01:39]} h6
{[%clk 01:11:34]} {[%emt 00:01:29]} 15. g5 {[%clk 01:01:23]} {[%emt 00:11:19]}
Na5 {[%clk 01:11:33]} {[%emt 00:00:32]} 16. c5 {[%clk 01:00:43]} {[%emt
00:01:10]} Nbc4 {[%clk 01:02:55]} {[%emt 00:09:09]} 17. a3 {[%clk 00:59:04]}
{[%emt 00:02:08]} Nxe3 {[%clk 01:02:39]} {[%emt 00:00:45]} 18. Qxe3 {[%clk
00:58:09]} {[%emt 00:01:25]} Bxc5 {[%clk 00:56:55]} {[%emt 00:06:15]} 19. Nxc5
{[%clk 00:57:03]} {[%emt 00:01:36]} hxg5 {[%clk 00:57:05]} {[%emt 00:00:20]} 20.
Qxg5 {[%clk 00:56:21]} {[%emt 00:01:12]} f6 {[%clk 00:50:16]} {[%emt 00:07:19]}
21. Qg4 {[%clk 00:54:19]} {[%emt 00:02:30]} f5 {[%clk 00:48:11]} {[%emt
00:02:36]} 22. Qg5 {[%clk 00:54:13]} {[%emt 00:00:35]} Qf7 {[%clk 00:45:44]}
{[%emt 00:02:57]} 23. Rhg1 {[%clk 00:53:01]} {[%emt 00:01:42]} b6 {[%clk
00:45:45]} {[%emt 00:00:30]} 24. Na6 {[%clk 00:46:16]} {[%emt 00:07:15]} Rhg8
{[%clk 00:36:45]} {[%emt 00:09:31]} 25. Kb1 {[%clk 00:43:43]} {[%emt 00:03:02]}
Qd7 {[%clk 00:34:34]} {[%emt 00:02:40]} 26. Rc1 {[%clk 00:43:36]} {[%emt
00:00:38]} Nc6 {[%clk 00:30:36]} {[%emt 00:04:29]} 27. b4 {[%clk 00:42:30]}
{[%emt 00:01:36]} Qd5 {[%clk 00:29:56]} {[%emt 00:01:07]} 28. Rc3 {[%clk
00:40:36]} {[%emt 00:02:29]} Qe4+ {[%clk 00:29:15]} {[%emt 00:01:09]} 29. Kb2
{[%clk 00:40:08]} {[%emt 00:00:58]} Qe2+ {[%clk 00:25:12]} {[%emt 00:04:33]} 30.
Qd2 {[%clk 00:40:00]} {[%emt 00:00:39]} Qxa6 {[%clk 00:25:36]} {[%emt
00:00:06]} 31. Rxc6 {[%clk 00:40:06]} {[%emt 00:00:24]} Qb5 {[%clk 00:22:22]}
{[%emt 00:03:43]} 32. Rgc1 {[%clk 00:39:34]} {[%emt 00:01:03]} Qd5 {[%clk
00:19:46]} {[%emt 00:03:06]} 33. Rxc7+ {[%clk 00:39:23]} {[%emt 00:00:41]} Kb8
{[%clk 00:20:10]} {[%emt 00:00:06]} 34. Qd3 {[%clk 00:38:23]} {[%emt 00:01:24]}
Rd7 {[%clk 00:16:30]} {[%emt 00:04:16]} 35. Qc3 {[%clk 00:38:22]} {[%emt
00:00:30]} Rxc7 {[%clk 00:14:48]} {[%emt 00:02:13]} 36. Qxc7+ {[%clk 00:38:33]}
{[%emt 00:00:20]} Ka8 {[%clk 00:15:15]} {[%emt 00:00:01]} 37. Qc6+ {[%clk
00:38:31]} {[%emt 00:00:32]} Kb8 {[%clk 00:15:41]} {[%emt 00:00:05]} 38. Qxd5
{[%clk 00:38:25]} {[%emt 00:00:36]} exd5 {[%clk 00:16:05]} {[%emt 00:00:06]} 39.
h4 {[%clk 00:38:14]} {[%emt 00:00:40]} Kb7 {[%clk 00:16:17]} {[%emt 00:00:19]}
40. Rg1 {[%clk 00:37:35]} {[%emt 00:01:09]} Kc6 {[%clk 00:16:05]} {[%emt
00:00:43]} 41. Rg6+ {[%clk 00:37:19]} {[%emt 00:00:45]} Kd7 {[%clk 00:16:17]}
{[%emt 00:00:18]} 42. Rd6+ {[%clk 00:37:30]} {[%emt 00:00:19]} Ke7 {[%clk
00:16:26]} {[%emt 00:00:21]} 43. Rxd5 {[%clk 00:37:35]} {[%emt 00:00:25]} 1-0

[Event "SS Manhem Chess Week 2022: Goteborg Open"]
[Site "Schackcentrum, Vegagatan 20, Gothenburg, Sweden"]
[Date "2022.08.14"]
[Round "8.15"]
[White "Persson, Sebastian"]
[Black "Stedman, Theodor"]
[Result "1-0"]
[TimeControl "15 minutes + 5 seconds per move from move one (Round 1 - 4) / 90 minutes + 30 seconds per move from move one (Round 5 - 8)"]
[WhiteFideId "1764187"]
[BlackFideId "1756230"]
[WhiteElo "1631"]
[BlackElo "1474"]

1. d4 {[%clk 01:30:57]} {[%emt 00:00:02]} d5 {[%clk 01:30:53]} {[%emt
00:00:07]} 2. c4 {[%clk 01:31:22]} {[%emt 00:00:06]} c6 {[%clk 01:31:21]}
{[%emt 00:00:03]} 3. Nf3 {[%clk 01:31:44]} {[%emt 00:00:07]} e6 {[%clk
01:31:17]} {[%emt 00:00:35]} 4. Nc3 {[%clk 01:31:27]} {[%emt 00:00:47]} dxc4
{[%clk 01:31:41]} {[%emt 00:00:06]} 5. e3 {[%clk 01:31:01]} {[%emt 00:00:55]}
b5 {[%clk 01:32:07]} {[%emt 00:00:05]} 6. a4 {[%clk 01:31:05]} {[%emt
00:00:25]} Bb4 {[%clk 01:28:27]} {[%emt 00:04:10]} 7. Ne5 {[%clk 01:28:26]}
{[%emt 00:03:09]} Bd7 {[%clk 01:26:46]} {[%emt 00:02:11]} 8. axb5 {[%clk
01:27:53]} {[%emt 00:01:02]} cxb5 {[%clk 01:26:39]} {[%emt 00:00:38]} 9. Qf3
{[%clk 01:27:57]} {[%emt 00:00:26]} f6 {[%clk 01:20:00]} {[%emt 00:07:09]} 10.
Qxa8 {[%clk 01:26:16]} {[%emt 00:02:11]} fxe5 {[%clk 01:20:08]} {[%emt
00:00:21]} 11. dxe5 {[%clk 01:24:45]} {[%emt 00:02:01]} Bc5 {[%clk 01:20:18]}
{[%emt 00:00:19]} 12. Qf3 {[%clk 01:23:45]} {[%emt 00:01:30]} Nc6 {[%clk
01:20:25]} {[%emt 00:00:24]} 13. Be2 {[%clk 01:21:48]} {[%emt 00:02:27]} Nge7
{[%clk 01:20:16]} {[%emt 00:00:39]} 14. O-O {[%clk 01:19:01]} {[%emt 00:03:17]}
Nf5 {[%clk 01:20:17]} {[%emt 00:00:28]} 15. Qh3 {[%clk 01:17:16]} {[%emt
00:02:17]} O-O {[%clk 01:19:52]} {[%emt 00:00:54]} 16. Ne4 {[%clk 01:08:45]}
{[%emt 00:09:02]} Be7 {[%clk 01:19:22]} {[%emt 00:00:59]} 17. f4 {[%clk
01:08:27]} {[%emt 00:00:48]} Nb4 {[%clk 01:16:47]} {[%emt 00:03:06]} 18. Rd1
{[%clk 00:47:07]} {[%emt 00:21:50]} Nd5 {[%clk 01:16:52]} {[%emt 00:00:26]} 19.
g4 {[%clk 00:44:05]} {[%emt 00:03:30]} Nh4 {[%clk 01:15:56]} {[%emt 00:01:26]}
20. g5 {[%clk 00:41:05]} {[%emt 00:03:31]} Nf5 {[%clk 01:15:59]} {[%emt
00:00:28]} 21. Bd2 {[%clk 00:40:52]} {[%emt 00:00:42]} Qb6 {[%clk 01:15:33]}
{[%emt 00:00:56]} 22. Kf2 {[%clk 00:41:04]} {[%emt 00:00:18]} Nxf4 {[%clk
01:14:39]} {[%emt 00:01:25]} 23. Qg4 {[%clk 00:34:10]} {[%emt 00:07:23]} Nxe3
{[%clk 01:07:35]} {[%emt 00:07:35]} 24. Bxe3 {[%clk 00:14:59]} {[%emt
00:19:40]} Nd5+ {[%clk 01:07:30]} {[%emt 00:00:35]} 25. Nf6+ {[%clk 00:15:04]}
{[%emt 00:00:26]} Rxf6+ {[%clk 01:04:00]} {[%emt 00:04:00]} 26. gxf6 {[%clk
00:15:19]} {[%emt 00:00:14]} Qxe3+ {[%clk 01:04:09]} {[%emt 00:00:22]} 27. Kf1
{[%clk 00:14:21]} {[%emt 00:01:28]} Qh6 {[%clk 01:00:10]} {[%emt 00:04:28]} 28.
Rxd5 {[%clk 00:14:14]} {[%emt 00:00:37]} exd5 {[%clk 00:59:55]} {[%emt
00:00:46]} 29. fxe7 {[%clk 00:13:21]} {[%emt 00:01:23]} Qxh2 {[%clk 00:59:25]}
{[%emt 00:01:00]} 30. Qe6+ {[%clk 00:12:11]} {[%emt 00:01:39]} 1-0

[Event "SS Manhem Chess Week 2022: Goteborg Open"]
[Site "Schackcentrum, Vegagatan 20, Gothenburg, Sweden"]
[Date "2022.08.14"]
[Round "8.17"]
[White "Torres, Lucas"]
[Black "Ghaderi, Noan"]
[Result "1/2-1/2"]
[TimeControl "15 minutes + 5 seconds per move from move one (Round 1 - 4) / 90 minutes + 30 seconds per move from move one (Round 5 - 8)"]
[WhiteFideId "1769464"]
[BlackFideId "1747096"]
[WhiteElo "1331"]
[BlackElo "1367"]

1. e4 {[%clk 01:27:10]} {[%emt 00:03:47]} c6 {[%clk 01:30:53]} {[%emt
00:00:08]} 2. d4 {[%clk 01:27:35]} {[%emt 00:00:05]} d5 {[%clk 01:31:19]}
{[%emt 00:00:04]} 3. Nc3 {[%clk 01:27:58]} {[%emt 00:00:07]} dxe4 {[%clk
01:30:16]} {[%emt 00:01:34]} 4. Nxe4 {[%clk 01:28:26]} {[%emt 00:00:02]} Bf5
{[%clk 01:29:39]} {[%emt 00:01:06]} 5. Ng3 {[%clk 01:28:37]} {[%emt 00:00:21]}
Bg6 {[%clk 01:29:53]} {[%emt 00:00:15]} 6. Nf3 {[%clk 01:28:55]} {[%emt
00:00:13]} e6 {[%clk 01:29:55]} {[%emt 00:00:29]} 7. h4 {[%clk 01:29:16]}
{[%emt 00:00:08]} h6 {[%clk 01:29:27]} {[%emt 00:00:58]} 8. h5 {[%clk
01:29:42]} {[%emt 00:00:04]} Bh7 {[%clk 01:29:48]} {[%emt 00:00:09]} 9. Bd3
{[%clk 01:30:07]} {[%emt 00:00:05]} Bxd3 {[%clk 01:30:01]} {[%emt 00:00:17]} 10.
Qxd3 {[%clk 01:30:30]} {[%emt 00:00:07]} Nf6 {[%clk 01:30:11]} {[%emt
00:00:20]} 11. Be3 {[%clk 01:30:46]} {[%emt 00:00:14]} Bd6 {[%clk 01:29:56]}
{[%emt 00:00:44]} 12. O-O-O {[%clk 01:29:37]} {[%emt 00:01:38]} Bxg3 {[%clk
01:30:02]} {[%emt 00:00:24]} 13. fxg3 {[%clk 01:29:40]} {[%emt 00:00:28]} Nbd7
{[%clk 01:28:52]} {[%emt 00:01:40]} 14. a3 {[%clk 01:29:38]} {[%emt 00:00:32]}
Ng4 {[%clk 01:27:14]} {[%emt 00:02:07]} 15. Rhf1 {[%emt 00:01:25]} Qe7 {[%clk
01:27:20]} {[%emt 00:00:23]} 16. Bf4 {[%clk 01:27:57]} {[%emt 00:01:14]} O-O-O
{[%clk 01:25:50]} {[%emt 00:02:03]} 17. Qc3 {[%clk 01:24:23]} {[%emt 00:04:00]}
Nb6 {[%clk 01:23:15]} {[%emt 00:03:09]} 18. Rfe1 {[%clk 01:19:38]} {[%emt
00:05:07]} Nd5 {[%clk 01:20:08]} 19. Qa5 {[%clk 01:17:52]} {[%emt 00:05:52]}
Nxf4 {[%clk 01:19:35]} {[%emt 00:01:12]} 20. gxf4 {[%clk 01:17:54]} {[%emt
00:00:27]} a6 {[%clk 01:19:03]} {[%emt 00:01:03]} 21. Ne5 {[%clk 01:14:46]}
{[%emt 00:03:37]} Nxe5 {[%clk 01:18:23]} {[%emt 00:01:12]} 22. Qxe5 {[%clk
01:09:46]} {[%emt 00:05:28]} Qf6 {[%clk 01:15:03]} {[%emt 00:03:51]} 23. Rd2
{[%clk 01:01:16]} {[%emt 00:08:55]} Rd5 {[%clk 01:14:24]} {[%emt 00:01:13]} 24.
Qxf6 {[%clk 01:00:54]} {[%emt 00:00:52]} gxf6 {[%clk 01:14:26]} {[%emt
00:00:27]} 25. g4 {[%clk 00:59:50]} {[%emt 00:01:32]} Rg8 {[%clk 01:12:33]}
{[%emt 00:02:25]} 26. Rg1 {[%clk 00:59:05]} {[%emt 00:01:14]} Rxh5 {[%clk
01:12:22]} {[%emt 00:00:43]} 27. Rdg2 {[%clk 00:55:27]} {[%emt 00:04:00]} Rd5
{[%clk 01:09:21]} {[%emt 00:03:37]} 28. c3 {[%clk 00:54:39]} {[%emt 00:01:16]}
Kd7 {[%clk 01:08:55]} {[%emt 00:00:59]} 29. Rh1 {[%clk 00:53:39]} {[%emt
00:01:26]} h5 {[%clk 01:06:02]} {[%emt 00:03:28]} 30. Rh4 {[%clk 00:51:22]}
{[%emt 00:02:42]} f5 {[%clk 00:54:20]} {[%emt 00:12:17]} 31. g5 {[%clk
00:49:33]} {[%emt 00:02:16]} 1/2-1/2

[Event "SS Manhem Chess Week 2022: Goteborg Open"]
[Site "Schackcentrum, Vegagatan 20, Gothenburg, Sweden"]
[Date "2022.08.14"]
[Round "8.19"]
[White "Ghaderi, Jamal"]
[Black "Jonbrink, Per-Olof"]
[Result "0-1"]
[TimeControl "15 minutes + 5 seconds per move from move one (Round 1 - 4) / 90 minutes + 30 seconds per move from move one (Round 5 - 8)"]
[WhiteFideId "1744178"]
[BlackFideId "1720163"]
[WhiteElo "1411"]
[BlackElo "1728"]

1. d4 {[%clk 01:30:57]} {[%emt 00:00:02]} Nf6 {[%clk 01:30:25]} {[%emt
00:00:36]} 2. Nf3 {[%clk 01:31:16]} {[%emt 00:00:11]} e6 {[%clk 01:30:27]}
{[%emt 00:00:29]} 3. Bf4 {[%clk 01:31:00]} {[%emt 00:00:44]} d5 {[%clk
01:29:27]} {[%emt 00:01:30]} 4. c3 {[%clk 01:30:54]} {[%emt 00:00:37]} Bd6
{[%clk 01:28:20]} {[%emt 00:01:38]} 5. Bxd6 {[%clk 01:30:50]} {[%emt 00:00:33]}
Qxd6 {[%clk 01:28:42]} {[%emt 00:00:08]} 6. e3 {[%clk 01:31:00]} {[%emt
00:00:20]} Nbd7 {[%clk 01:28:12]} {[%emt 00:01:00]} 7. Bd3 {[%clk 01:28:43]}
{[%emt 00:02:47]} O-O {[%clk 01:26:53]} {[%emt 00:01:50]} 8. O-O {[%clk
01:28:32]} {[%emt 00:00:41]} c6 {[%clk 01:23:39]} {[%emt 00:03:42]} 9. Nbd2
{[%clk 01:25:54]} {[%emt 00:03:09]} e5 {[%clk 01:19:34]} {[%emt 00:04:36]} 10.
dxe5 {[%clk 01:21:40]} {[%emt 00:04:44]} Nxe5 {[%clk 01:19:50]} {[%emt
00:00:14]} 11. Qc2 {[%clk 01:21:47]} {[%emt 00:00:24]} Nxd3 {[%clk 01:16:22]}
{[%emt 00:03:57]} 12. Qxd3 {[%clk 01:21:57]} {[%emt 00:00:19]} Qe7 {[%clk
01:10:24]} {[%emt 00:06:28]} 13. Rfe1 {[%clk 01:20:09]} {[%emt 00:02:18]} Ne4
{[%clk 01:07:30]} {[%emt 00:03:24]} 14. Qd4 {[%clk 01:12:55]} {[%emt 00:07:43]}
Bf5 {[%clk 01:01:02]} {[%emt 00:06:59]} 15. Nxe4 {[%clk 01:08:44]} {[%emt
00:04:41]} dxe4 {[%clk 00:57:26]} {[%emt 00:04:05]} 16. Qe5 {[%clk 01:08:48]}
{[%emt 00:00:27]} Qxe5 {[%clk 00:54:26]} {[%emt 00:03:31]} 17. Nxe5 {[%clk
01:08:52]} {[%emt 00:00:26]} Be6 {[%clk 00:52:01]} {[%emt 00:02:54]} 18. f3
{[%clk 01:08:00]} {[%emt 00:01:22]} f6 {[%clk 00:50:41]} {[%emt 00:01:51]} 19.
Ng4 {[%clk 01:08:09]} {[%emt 00:00:19]} Rfd8 {[%clk 00:49:04]} {[%emt
00:02:08]} 20. Nf2 {[%emt 00:10:31]} exf3 {[%clk 00:44:33]} {[%emt 00:03:24]}
21. gxf3 {[%clk 01:00:07]} {[%emt 00:00:08]} Rd2 {[%clk 00:44:23]} {[%emt
00:00:40]} 22. b3 {[%clk 01:00:17]} {[%emt 00:00:21]} Bf5 {[%clk 00:41:13]}
{[%emt 00:03:40]} 23. e4 {[%clk 00:54:47]} {[%emt 00:06:00]} Be6 {[%clk
00:39:37]} {[%emt 00:02:07]} 24. e5 {[%clk 00:52:24]} f5 {[%clk 00:36:09]}
{[%emt 00:06:50]} 25. Red1 {[%clk 00:50:43]} Rad8 {[%clk 00:35:08]} {[%emt
00:03:42]} 26. c4 {[%clk 00:48:28]} {[%emt 00:02:45]} f4 {[%clk 00:32:34]}
{[%emt 00:03:04]} 27. Rxd2 {[%clk 00:47:19]} {[%emt 00:01:39]} Rxd2 {[%clk
00:32:57]} {[%emt 00:00:07]} 28. Ne4 {[%clk 00:47:16]} {[%emt 00:00:34]} Rc2
{[%clk 00:28:19]} {[%emt 00:05:06]} 29. Nc5 {[%clk 00:45:32]} {[%emt 00:02:15]}
Bc8 {[%clk 00:28:35]} {[%emt 00:00:14]} 30. Rd1 {[%clk 00:45:31]} {[%emt
00:00:31]} Bh3 {[%clk 00:25:19]} {[%emt 00:03:47]} 31. e6 {[%clk 00:43:39]}
{[%emt 00:02:22]} Kf8 {[%clk 00:24:17]} {[%emt 00:01:31]} 32. Rd8+ {[%clk
00:41:24]} {[%emt 00:02:46]} Ke7 {[%clk 00:24:25]} {[%emt 00:00:22]} 33. Rd7+
{[%clk 00:41:44]} {[%emt 00:00:09]} Kf6 {[%clk 00:22:44]} {[%emt 00:02:11]} 34.
Rf7+ {[%clk 00:41:19]} {[%emt 00:00:55]} Kg6 {[%clk 00:22:59]} {[%emt
00:00:16]} 35. Rxf4 {[%clk 00:40:31]} {[%emt 00:01:18]} Rg2+ {[%clk 00:21:15]}
{[%emt 00:02:14]} 36. Kh1 {[%clk 00:40:33]} {[%emt 00:00:28]} Rxa2 {[%clk
00:19:34]} {[%emt 00:02:11]} 37. Kg1 {[%clk 00:40:43]} {[%emt 00:00:19]} Rg2+
{[%clk 00:19:33]} {[%emt 00:00:31]} 38. Kh1 {[%emt 00:00:59]} Rf2 {[%emt
00:01:56]} 39. Kg1 {[%clk 00:38:02]} {[%emt 00:00:16]} Rf1# {[%emt 00:00:09]}
40. Kh1 {[%emt 00:00:23]} Rf2 41. Rg4+ Bxg4 {[%emt 00:00:01]} 42. fxg4 {[%emt
00:00:01]} b6 {[%emt 00:00:32]} 0-1